bitfinex/quotes_BTCUSD_20251021
["timestamp","ask_amount","ask_price","bid_price","bid_amount"]
[1761064342193,0.2889906,113870.0,113860.0,1e-08]
[1761064342680,0.6289906,113870.0,113860.0,1e-08]
[1761064342818,0.6279906,113870.0,113860.0,1e-08]
[1761064343259,0.71780961,113870.0,113860.0,1e-08]
[1761064344749,0.60536961,113870.0,113860.0,1e-08]
[1761064345535,0.17567674,113850.0,113840.0,0.17568483]
[1761064345737,0.17567674,113850.0,113840.0,0.17617019]
[1761064347582,0.17567674,113850.0,113840.0,0.00148536]
[1761064347808,0.17567674,113850.0,113840.0,0.28957053]
[1761064348005,0.61415155,113870.0,113850.0,0.17566974]
[1761064348211,0.17565431,113860.0,113850.0,0.17566974]
[1761064348427,0.17565431,113860.0,113840.0,0.96737465]
[1761064348632,0.17565431,113860.0,113850.0,0.17566974]
[1761064348834,0.61415155,113870.0,113850.0,0.19323671]
[1761064349297,0.17565431,113860.0,113850.0,0.19323671]
[1761064349725,0.17565431,113860.0,113850.0,0.1930769]
[1761064350157,0.17565431,113860.0,113850.0,0.01756697]
[1761064350381,0.17616141,113860.0,113850.0,0.01756697]
[1761064350597,0.17565431,113860.0,113850.0,0.19323671]
[1761064351212,0.17616141,113860.0,113850.0,0.19323671]
[1761064353393,0.17616141,113860.0,113850.0,0.01756697]
[1761064353633,0.17616141,113860.0,113850.0,0.19323671]
[1761064355771,0.17616141,113860.0,113850.0,0.34203671]
[1761064355980,0.17616141,113860.0,113850.0,0.1488]
[1761064356525,0.51566974,113850.0,113840.0,0.14928536]
[1761064357790,0.51566974,113850.0,113840.0,0.15028536]
[1761064358602,0.51583104,113850.0,113840.0,0.15028536]
[1761064359516,0.60565005,113850.0,113840.0,0.00148536]
[1761064359669,0.60548875,113850.0,113840.0,0.00132406]
[1761064360120,0.51566974,113850.0,113840.0,0.00132406]
[1761064362474,0.52433761,113850.0,113840.0,0.00132406]
[1761064363522,0.61415662,113850.0,113840.0,0.00132406]
[1761064364096,0.60548875,113850.0,113840.0,0.00132406]
[1761064366301,1.14008875,113850.0,113840.0,0.00132406]
[1761064366506,1.05026974,113850.0,113840.0,0.00132406]
[1761064367087,1.11689381,113850.0,113840.0,0.00132406]
[1761064367704,1.20671282,113850.0,113840.0,0.00132406]
[1761064368675,1.14008875,113850.0,113840.0,0.00132406]
[1761064369976,1.14008875,113850.0,113840.0,0.00032406]
[1761064373853,2.0913479,113850.0,113840.0,0.00032406]
[1761064374712,1.25244875,113850.0,113840.0,0.00032406]
[1761064374857,2.0913479,113850.0,113840.0,0.00032406]
[1761064375067,2.18116691,113850.0,113840.0,0.00032406]
[1761064375271,2.18116691,113850.0,113840.0,1e-08]
[1761064375487,2.21013035,113850.0,113840.0,1e-08]
[1761064375683,0.17574692,113800.0,113790.0,0.00301806]
[1761064375903,0.30170572,113800.0,113790.0,0.00301806]
[1761064376106,0.26605078,113800.0,113790.0,0.00301806]
[1761064377029,0.26605078,113800.0,113790.0,0.17878042]
[1761064377030,0.17623177,113800.0,113790.0,0.17878042]
[1761064377172,0.17673887,113800.0,113790.0,0.02059429]
[1761064377376,0.17673887,113800.0,113790.0,0.19635665]
[1761064377618,0.17673887,113800.0,113790.0,0.30871665]
[1761064378012,0.17673887,113800.0,113790.0,0.29114042]
[1761064378206,0.17623177,113800.0,113790.0,0.17878042]
[1761064378406,0.17673887,113800.0,113790.0,0.30871665]
[1761064378582,0.17673887,113800.0,113790.0,0.17878042]
[1761064378783,0.17673887,113800.0,113790.0,0.29114042]
[1761064379620,0.03712779,113800.0,113790.0,0.11537806]
[1761064379808,0.03712779,113800.0,113790.0,0.30871665]
[1761064379809,0.00048485,113800.0,113790.0,0.30871665]
[1761064380004,0.17623177,113800.0,113790.0,0.17878042]
[1761064380212,0.00048485,113800.0,113790.0,0.30871665]
[1761064380414,0.17623177,113800.0,113790.0,0.29114042]
[1761064380998,0.17673887,113800.0,113790.0,0.11537806]
[1761064381198,0.2119859,113800.0,113790.0,0.11537806]
[1761064381396,0.2114788,113800.0,113790.0,0.11537806]
[1761064381597,0.2114788,113800.0,113790.0,0.29114042]
[1761064381813,0.00048485,113800.0,113790.0,0.29114042]
[1761064382027,0.17673887,113800.0,113790.0,0.11541806]
[1761064382247,0.17673887,113800.0,113790.0,0.29118042]
[1761064382821,0.00099195,113800.0,113790.0,0.29118042]
[1761064383027,0.00048485,113800.0,113790.0,1.13007957]
[1761064383227,0.00048485,113800.0,113790.0,1.21989858]
[1761064383434,0.80008875,113850.0,113840.0,0.17568517]
[1761064383435,0.56101927,113850.0,113840.0,0.17568517]
[1761064383675,0.5346,113850.0,113840.0,0.17573361]
[1761064383954,0.71026974,113850.0,113840.0,4.844e-05]
[1761064384418,0.5346,113850.0,113840.0,0.01761695]
[1761064384640,0.71026974,113850.0,113840.0,0.01761695]
[1761064384869,0.71026974,113850.0,113840.0,4.844e-05]
[1761064385112,0.5346,113850.0,113840.0,0.19330212]
[1761064385566,0.5346,113850.0,113840.0,0.17573361]
[1761064386885,0.71026974,113850.0,113840.0,0.28809361]
[1761064387285,0.71033635,113850.0,113840.0,0.28809361]
[1761064388187,0.71033635,113850.0,113840.0,0.28909361]
[1761064388386,0.71026974,113850.0,113840.0,0.289027]
[1761064388563,0.71026974,113850.0,113840.0,0.28904517]
[1761064389147,0.5346,113850.0,113840.0,0.28904517]
[1761064389329,0.71026974,113850.0,113840.0,0.28904517]
[1761064389712,0.5346,113850.0,113840.0,0.28904517]
[1761064390070,0.71026974,113850.0,113840.0,0.28904517]
[1761064390296,0.5346,113850.0,113840.0,0.28904517]
[1761064391848,0.71026974,113850.0,113840.0,0.17668517]
[1761064392054,0.5346,113850.0,113840.0,0.28904517]
[1761064395898,0.17565442,113860.0,113840.0,0.11236]
[1761064396094,0.17565442,113860.0,113840.0,0.28804517]
[1761064396296,0.17565442,113860.0,113850.0,0.17566974]
[1761064396923,0.17565442,113860.0,113850.0,0.28802974]
[1761064397326,0.17565442,113860.0,113850.0,0.11236]
[1761064397530,0.17565442,113860.0,113830.0,0.18431971]
[1761064397729,0.18447874,113850.0,113840.0,0.11232]
[1761064398341,0.18447874,113850.0,113840.0,0.30557368]
[1761064398660,0.18447874,113850.0,113840.0,0.28800517]
[1761064398868,0.17566974,113850.0,113840.0,0.11232]
[1761064399026,0.17566974,113850.0,113840.0,0.28800517]
[1761064399397,0.34878271,113860.0,113840.0,0.28800517]
[1761064399547,0.19486177,113870.0,113850.0,0.17566974]
[1761064399751,0.17565431,113860.0,113850.0,0.17566974]
[1761064399952,0.17565431,113860.0,113850.0,0.11232]
[1761064400521,0.17566974,113850.0,113840.0,0.001]
[1761064400659,0.17566974,113850.0,113840.0,0.11232]
[1761064401074,0.17617684,113850.0,113830.0,0.19351975]
[1761064401273,0.17566974,113850.0,113840.0,0.12988851]
[1761064401473,0.17566974,113850.0,113840.0,0.30557368]
[1761064401675,0.17566974,113850.0,113840.0,0.28800517]
[1761064401892,0.17566974,113850.0,113840.0,0.28900517]
[1761064402145,0.17566974,113850.0,113840.0,0.11332]
[1761064402299,0.17566974,113850.0,113840.0,0.13088851]
[1761064402744,0.17617684,113850.0,113840.0,0.13088851]
[1761064403302,0.17566974,113850.0,113840.0,0.13088851]
[1761064404309,0.17566974,113850.0,113840.0,0.30657368]
[1761064404507,0.17566974,113850.0,113840.0,0.28900517]
[1761064404712,0.18443702,113860.0,113850.0,0.17566974]
[1761064405084,0.17566974,113850.0,113840.0,0.28900517]
[1761064405897,0.17566974,113850.0,113840.0,0.28280517]
[1761064406455,0.18443702,113860.0,113850.0,0.17566974]
[1761064407097,0.17565431,113860.0,113850.0,0.19323671]
[1761064407304,0.19486177,113870.0,113850.0,0.19323671]
[1761064407502,0.55380835,113870.0,113860.0,0.11232]
[1761064407993,0.01036903,113870.0,113860.0,0.30553974]
[1761064408274,0.18600791,113870.0,113860.0,0.11232]
[1761064408482,0.18600791,113870.0,113860.0,0.30553974]
[1761064408644,0.18600791,113870.0,113860.0,0.28797431]
[1761064408845,0.01036903,113870.0,113860.0,0.28797431]
[1761064409340,0.01036903,113870.0,113860.0,0.37779332]
[1761064409864,0.01036903,113870.0,113860.0,0.28797431]
[1761064410082,0.18600791,113870.0,113860.0,0.28797431]
[1761064410305,0.18600791,113870.0,113860.0,0.17565431]
[1761064410512,0.18600791,113870.0,113860.0,0.11232]
[1761064410715,0.18600791,113870.0,113860.0,0.28797431]
[1761064411314,0.18600791,113870.0,113860.0,0.28897431]
[1761064411511,0.18600791,113870.0,113860.0,0.001]
[1761064411714,0.18600791,113870.0,113860.0,0.11232]
[1761064412284,0.18600791,113870.0,113860.0,0.11332]
[1761064413250,0.56217115,113870.0,113860.0,0.001]
[1761064413451,0.56217115,113870.0,113860.0,0.11332]
[1761064413671,0.52600791,113870.0,113860.0,0.11332]
[1761064414262,0.52600791,113870.0,113860.0,0.13088543]
[1761064415029,0.52600791,113870.0,113860.0,0.11332]
[1761064415244,0.52600791,113870.0,113860.0,0.13088543]
[1761064418129,0.52600791,113870.0,113860.0,0.11332]
[1761064418334,0.59617115,113870.0,113860.0,0.11332]
[1761064418510,0.52600791,113870.0,113860.0,0.11332]
[1761064418712,0.52600791,113870.0,113860.0,0.13088543]
[1761064419345,0.52600791,113870.0,113860.0,0.001]
[1761064419509,0.17568517,113840.0,113830.0,0.00012776]
[1761064419712,1.35458432,113840.0,113830.0,0.00012776]
[1761064419911,0.51568517,113840.0,113830.0,0.00012776]
[1761064420396,1.35458432,113840.0,113830.0,0.00012776]
[1761064421242,0.51568517,113840.0,113830.0,0.00012776]
[1761064421441,1.52255639,113840.0,113830.0,0.00112776]
[1761064421654,0.68365724,113840.0,113830.0,0.00112776]
[1761064421829,0.79593724,113840.0,113830.0,0.00012776]
[1761064422084,0.60550418,113840.0,113830.0,0.00012776]
[1761064422813,1.44440333,113840.0,113830.0,0.00012776]
[1761064424044,0.60550418,113840.0,113830.0,0.00012776]
[1761064426012,1.44440333,113840.0,113830.0,0.00012776]
[1761064426534,0.60550418,113840.0,113830.0,0.00012776]
[1761064426741,0.69532319,113840.0,113830.0,0.00012776]
[1761064427147,1.53422234,113840.0,113830.0,0.00012776]
[1761064427375,0.69532319,113840.0,113830.0,0.00012776]
[1761064429527,1.53422234,113840.0,113830.0,0.00012776]
[1761064430617,0.17574692,113800.0,113790.0,0.00301806]
[1761064430914,0.17574692,113800.0,113790.0,0.0031633]
[1761064431140,0.51574692,113800.0,113790.0,0.0031633]
[1761064431934,0.51574692,113800.0,113790.0,0.0041633]
[1761064433039,0.34,113800.0,113790.0,0.17992566]
[1761064433244,0.34,113800.0,113790.0,0.19750189]
[1761064433441,0.51574692,113800.0,113790.0,0.17892566]
[1761064433849,0.51574692,113800.0,113790.0,0.0041633]
[1761064434051,0.51574692,113800.0,113790.0,0.17992566]
[1761064435581,0.51574692,113800.0,113790.0,0.0041633]
[1761064435582,0.58578258,113800.0,113790.0,0.0041633]
[1761064435787,0.51574692,113800.0,113790.0,0.17992566]
[1761064435981,0.34,113800.0,113790.0,0.19750189]
[1761064436200,0.51574692,113800.0,113790.0,0.19750189]
[1761064436425,0.34,113800.0,113790.0,0.19750189]
[1761064436782,0.17573148,113810.0,113800.0,0.17574692]
[1761064436998,0.51623858,113810.0,113790.0,0.85830179]
[1761064437201,0.51573148,113810.0,113800.0,0.11232]
[1761064437444,0.58575742,113810.0,113800.0,0.11232]
[1761064440742,0.51573148,113810.0,113800.0,0.11232]
[1761064442345,0.51573148,113810.0,113790.0,0.17892559]
[1761064442537,0.17574692,113800.0,113790.0,0.29124559]
[1761064446026,0.17565431,113860.0,113850.0,0.12988697]
[1761064446304,0.18600914,113870.0,113850.0,0.30555671]
[1761064446633,0.51565431,113860.0,113850.0,0.28798974]
[1761064446986,0.34,113860.0,113850.0,0.28813498]
[1761064447217,0.51565431,113860.0,113850.0,0.28813498]
[1761064447417,0.34,113860.0,113850.0,0.28813498]
[1761064447626,0.17565431,113860.0,113850.0,0.28813498]
[1761064447846,0.51565431,113860.0,113850.0,0.28813498]
[1761064448025,0.4656595,113860.0,113850.0,0.28813498]
[1761064448827,0.18600914,113870.0,113850.0,0.28813498]
[1761064449043,0.52600914,113870.0,113860.0,0.17565431]
[1761064449433,0.52600791,113870.0,113860.0,0.19321974]
[1761064449651,0.52600791,113870.0,113850.0,0.28913498]
[1761064450063,0.52600791,113870.0,113860.0,0.01756543]
[1761064450477,0.52600791,113870.0,113860.0,0.19321974]
[1761064450690,0.52600791,113870.0,113860.0,0.01756543]
[1761064450894,0.35036903,113870.0,113860.0,0.87159587]
[1761064451106,0.35036903,113870.0,113860.0,0.17565431]
[1761064451350,0.01036903,113870.0,113860.0,0.19190586]
[1761064451518,0.01036903,113870.0,113860.0,0.19253473]
[1761064451721,0.01036903,113870.0,113860.0,0.19321974]
[1761064452434,0.01036903,113870.0,113860.0,0.17565431]
[1761064452655,0.18600791,113870.0,113860.0,0.17565431]
[1761064453824,0.18600791,113870.0,113860.0,0.17665431]
[1761064454662,0.01036903,113870.0,113860.0,0.17665431]
[1761064455587,0.18600791,113870.0,113860.0,0.17665431]
[1761064455997,0.01036903,113870.0,113860.0,0.17665431]
[1761064457167,0.01036903,113870.0,113860.0,0.19421974]
[1761064457538,0.01036903,113870.0,113860.0,0.17665431]
[1761064457747,0.01036903,113870.0,113860.0,0.96241488]
[1761064457958,0.01036903,113870.0,113860.0,0.94484945]
[1761064458279,0.01036903,113870.0,113860.0,0.26647332]
[1761064458481,0.01036903,113870.0,113860.0,0.94484945]
[1761064459777,0.01036903,113870.0,113860.0,0.26647332]
[1761064459984,0.18600791,113870.0,113860.0,0.28889431]
[1761064461634,0.01036903,113870.0,113860.0,0.28889431]
[1761064461837,0.18600791,113870.0,113860.0,0.28889431]
[1761064463247,0.30748147,113870.0,113860.0,0.001]
[1761064463477,0.75972147,113870.0,113860.0,0.001]
[1761064463943,0.52600791,113870.0,113860.0,0.001]
[1761064464177,0.52600791,113870.0,113860.0,0.13080543]
[1761064464373,0.52600791,113870.0,113860.0,0.30545974]
[1761064464602,0.35036903,113870.0,113860.0,0.28789431]
[1761064464814,0.01036903,113870.0,113860.0,0.96627044]
[1761064465696,0.18600791,113870.0,113860.0,0.28789431]
[1761064466811,0.18600791,113870.0,113860.0,0.28889431]
[1761064470873,0.18600791,113870.0,113860.0,0.76578229]
[1761064471507,0.18600791,113870.0,113860.0,0.28889431]
[1761064471936,0.18600791,113870.0,113860.0,0.76578229]
[1761064472356,0.01036903,113870.0,113860.0,0.76578229]
[1761064472558,0.18600791,113870.0,113860.0,1.24267027]
[1761064472988,0.01036903,113870.0,113860.0,1.24267027]
[1761064473186,0.01036903,113870.0,113860.0,1.33248928]
[1761064473664,0.01036903,113870.0,113860.0,0.47788798]
[1761064473665,0.18600791,113870.0,113860.0,0.47788798]
[1761064473876,0.18600791,113870.0,113860.0,0.76574229]
[1761064476079,0.17600791,113870.0,113860.0,0.76574229]
[1761064476836,0.51600791,113870.0,113860.0,0.001]
[1761064477173,0.58517113,113870.0,113860.0,0.1132]
[1761064477592,0.51600791,113870.0,113860.0,0.78330772]
[1761064477808,0.51600791,113870.0,113860.0,0.76574229]
[1761064478108,0.51600791,113870.0,113860.0,0.28885431]
[1761064478307,0.51600791,113870.0,113860.0,0.59008798]
[1761064478446,0.51600791,113870.0,113860.0,0.76574229]
[1761064479409,0.34036903,113870.0,113860.0,0.76574229]
[1761064479660,0.00036903,113870.0,113860.0,0.28885431]
[1761064480043,0.00036903,113870.0,113860.0,1.24263027]
[1761064483318,0.00036903,113870.0,113860.0,0.1132]
[1761064483319,0.17600791,113870.0,113860.0,0.1132]
[1761064483452,0.56792454,113870.0,113860.0,0.001]
[1761064483655,0.56741744,113870.0,113860.0,0.11316]
[1761064484066,1.13412443,113870.0,113860.0,0.001]
[1761064485146,1.61101241,113870.0,113860.0,0.001]
[1761064485506,1.13412443,113870.0,113860.0,0.001]
[1761064485713,0.51565431,113860.0,113850.0,0.58919322]
[1761064486086,0.51565431,113860.0,113850.0,0.11230524]
[1761064486529,0.51565431,113860.0,113850.0,0.28797498]
[1761064486747,0.34,113860.0,113850.0,0.76486296]
[1761064486921,0.51565431,113860.0,113850.0,0.76486296]
[1761064488871,0.34,113860.0,113850.0,0.76486296]
[1761064489074,0.51565431,113860.0,113850.0,0.76486296]
[1761064489770,1.06170859,113860.0,113850.0,0.00014524]
[1761064489984,1.1515276,113860.0,113850.0,0.00014524]
[1761064490387,0.34,113860.0,113850.0,0.65270296]
[1761064490592,0.51565431,113860.0,113850.0,0.17581498]
[1761064490794,0.51565431,113860.0,113850.0,0.00014524]
[1761064491131,0.51565431,113860.0,113850.0,0.17581498]
[1761064491578,0.51565431,113860.0,113850.0,0.17681498]
[1761064492208,0.51565431,113860.0,113850.0,0.17581498]
[1761064494188,0.12641088,113890.0,113850.0,0.26563399]
[1761064494352,0.03260504,113900.0,113890.0,3.52560803]
[1761064494553,0.018411,113930.0,113920.0,0.17556179]
[1761064494716,0.02663783,113930.0,113920.0,1.21331665]
[1761064494916,0.02663783,113930.0,113920.0,0.7187808]
[1761064495149,0.018411,113930.0,113920.0,1.10594147]
[1761064495432,0.018411,113930.0,113920.0,0.76594147]
[1761064495555,0.01889656,113930.0,113920.0,0.76594147]
[1761064495974,0.01889656,113930.0,113920.0,0.85576048]
[1761064496441,0.01889656,113930.0,113920.0,0.85676048]
[1761064496803,0.01889656,113930.0,113920.0,1.21605562]
[1761064497007,0.01889656,113930.0,113920.0,1.2316274]
[1761064497569,0.01889656,113930.0,113920.0,1.24793959]
[1761064498254,0.01889656,113930.0,113920.0,1.24893959]
[1761064498833,0.01889656,113930.0,113920.0,1.2325074]
[1761064499040,0.01889656,113930.0,113920.0,1.24880569]
[1761064499860,0.01889656,113930.0,113920.0,1.13552569]
[1761064500133,0.01889656,113930.0,113920.0,0.41149087]
[1761064500307,0.01889656,113930.0,113920.0,1.24876569]
[1761064501014,0.01889656,113930.0,113920.0,1.47552569]
[1761064501221,0.01889656,113930.0,113920.0,1.58876569]
[1761064501433,0.01889656,113930.0,113920.0,1.47552569]
[1761064501600,0.01889656,113930.0,113920.0,0.30606008]
[1761064501804,0.01889656,113930.0,113920.0,1.23315391]
[1761064502025,0.01889656,113930.0,113920.0,1.55685562]
[1761064502237,0.01889656,113930.0,113920.0,1.57313339]
[1761064502804,0.01889656,113930.0,113920.0,1.45993339]
[1761064503004,0.01889656,113930.0,113920.0,1.57317339]
[1761064505025,0.01889656,113930.0,113920.0,1.5891341]
[1761064505218,0.02085731,113930.0,113920.0,1.5891341]
[1761064506890,0.02085731,113930.0,113920.0,5.43640891]
[1761064507100,0.02085731,113930.0,113920.0,5.47728901]
[1761064507468,0.02421696,113960.0,113950.0,0.17551557]
[1761064507681,0.02421696,113960.0,113950.0,1.24978396]
[1761064507881,0.02421696,113960.0,113950.0,1.23223241]
[1761064508260,0.02421696,113960.0,113950.0,1.5822324]
[1761064508481,0.02421696,113960.0,113950.0,1.61311251]
[1761064508690,0.02421696,113960.0,113950.0,0.77583769]
[1761064508887,0.02421696,113960.0,113950.0,1.5822324]
[1761064509219,0.02421696,113960.0,113950.0,1.58219609]
[1761064509423,0.02421696,113960.0,113950.0,1.6130762]
[1761064509827,0.02421696,113960.0,113950.0,1.61307126]
[1761064510668,0.0002,113970.0,113960.0,1.36277498]
[1761064510817,0.0002,113970.0,113960.0,1.4788305]
[1761064511207,0.0002,113970.0,113960.0,4.50971061]
[1761064511973,0.0002,113970.0,113960.0,4.51071061]
[1761064512377,1e-08,113980.0,113970.0,3.53548475]
[1761064512580,1e-08,113990.0,113980.0,0.18546937]
[1761064512779,1e-08,113990.0,113980.0,1.39199972]
[1761064512978,1e-08,113990.0,113980.0,1.77287982]
[1761064513350,1e-08,113990.0,113980.0,4.00149813]
[1761064513546,1e-08,113990.0,113980.0,4.83877295]
[1761064513755,0.00195921,113990.0,113980.0,4.83877295]
[1761064514176,0.00195921,113990.0,113980.0,4.86842634]
[1761064514805,0.00195921,113990.0,113980.0,4.83877295]
[1761064515359,0.00195921,113990.0,113980.0,4.17869802]
[1761064515565,0.00195921,113990.0,113980.0,0.37125553]
[1761064515788,0.00195921,113990.0,113980.0,0.3806]
[1761064515990,0.17741319,113990.0,113980.0,0.2672]
[1761064516192,0.17741319,113990.0,113980.0,0.3806]
[1761064516391,0.17741319,113990.0,113980.0,0.3786]
[1761064516599,0.17741319,113990.0,113980.0,0.3766]
[1761064517003,0.00195921,113990.0,113980.0,0.55206938]
[1761064517374,0.17741319,113990.0,113980.0,0.55206938]
[1761064517784,0.17792029,113990.0,113980.0,0.37652]
[1761064518157,0.17741319,113990.0,113980.0,0.55198938]
[1761064518356,0.17741319,113990.0,113980.0,0.55298938]
[1761064518590,0.00195921,113990.0,113980.0,0.55298938]
[1761064518797,0.00195921,113990.0,113980.0,1.49629998]
[1761064519031,0.00195921,113990.0,113980.0,1.49529998]
[1761064519166,0.00195921,113990.0,113980.0,0.66613542]
[1761064519360,0.00195921,113990.0,113980.0,1.50441024]
[1761064519563,0.00195921,113990.0,113980.0,0.49166662]
[1761064519781,0.17741319,113990.0,113980.0,0.01721677]
[1761064520006,0.6077393,113990.0,113980.0,0.01721677]
[1761064520162,0.51741319,113990.0,113980.0,0.001]
[1761064520518,0.17741319,113990.0,113980.0,0.001]
[1761064520660,0.17792029,113990.0,113980.0,0.01854693]
[1761064520866,0.17741319,113990.0,113980.0,0.01854693]
[1761064521343,0.17741319,113990.0,113980.0,0.01724822]
[1761064521344,0.17792029,113990.0,113980.0,0.01724822]
[1761064521517,0.17792029,113990.0,113980.0,0.001]
[1761064522180,0.17792029,113990.0,113980.0,0.01726251]
[1761064522865,0.17741319,113990.0,113980.0,0.02539462]
[1761064523571,0.17741319,113990.0,113980.0,0.200864]
[1761064523774,0.17741319,113990.0,113980.0,0.02539462]
[1761064524344,0.17741319,113990.0,113980.0,0.0254537]
[1761064526009,0.17741319,113990.0,113980.0,0.01730247]
[1761064526211,1.01519511,113990.0,113980.0,0.00915364]
[1761064526415,0.17548477,113970.0,113950.0,0.05457481]
[1761064526572,0.17550017,113960.0,113950.0,0.02348259]
[1761064526772,1.01277499,113960.0,113950.0,0.00014524]
[1761064527208,1.01277499,113960.0,113950.0,0.01646294]
[1761064527404,1.01277499,113960.0,113950.0,0.04694259]
[1761064527562,1.64577301,113960.0,113950.0,0.03145956]
[1761064527761,1.64577301,113960.0,113950.0,0.04777012]
[1761064527998,1.67430388,113960.0,113950.0,0.04777012]
[1761064528838,1.58448487,113960.0,113950.0,0.00014524]
[1761064529114,1.555954,113960.0,113950.0,0.00014524]
[1761064529311,1.555954,113960.0,113950.0,0.03145956]
[1761064529850,0.71867918,113960.0,113950.0,0.03145956]
[1761064530051,0.51550017,113960.0,113950.0,0.07825691]
[1761064530268,0.17550017,113960.0,113950.0,0.24000971]
[1761064530472,0.28880477,113970.0,113950.0,0.22245816]
[1761064530676,0.17600727,113960.0,113950.0,0.04667806]
[1761064530870,0.17600727,113960.0,113950.0,0.06422961]
[1761064531956,0.17698713,113960.0,113950.0,0.06422961]
[1761064532598,0.17698713,113960.0,113950.0,0.23974518]
[1761064532800,0.17698713,113960.0,113950.0,0.04667806]
[1761064533009,0.17698713,113960.0,113950.0,0.09556113]
[1761064533183,0.17698713,113960.0,113950.0,0.06422961]
[1761064533385,0.17698713,113960.0,113950.0,0.04667806]
[1761064533993,0.17698713,113960.0,113950.0,0.03134377]
[1761064533994,1.01426195,113960.0,113950.0,0.03134377]
[1761064534327,1.30667287,113960.0,113950.0,0.03134377]
[1761064534527,1.21685386,113960.0,113950.0,0.03134377]
[1761064536152,0.51551557,113950.0,113940.0,0.03134377]
[1761064536365,0.51551557,113950.0,113940.0,0.03148923]
[1761064536366,1.4426094,113950.0,113940.0,0.03148923]
[1761064537520,1.4426094,113950.0,113940.0,0.00014546]
[1761064539388,0.60533458,113950.0,113940.0,0.00014546]
[1761064539626,1.4426094,113950.0,113940.0,0.00014546]
[1761064539825,0.60533458,113950.0,113940.0,0.00014546]
[1761064541631,0.6317047,113950.0,113940.0,0.00014546]
[1761064541809,0.63235799,113950.0,113940.0,0.00014546]
[1761064542014,0.60598787,113950.0,113940.0,0.01649758]
[1761064544400,1.44326269,113950.0,113940.0,0.01649758]
[1761064544811,1.44326269,113950.0,113940.0,0.00014546]
[1761064546230,1.44426269,113950.0,113940.0,0.00014546]
[1761064546429,0.60698787,113950.0,113940.0,0.00014546]
[1761064546637,1.53383949,113950.0,113940.0,0.00014546]
[1761064550708,1.37346907,113950.0,113940.0,0.00014546]
[1761064551364,0.60698787,113950.0,113940.0,0.00014546]
[1761064551523,0.51716886,113950.0,113940.0,0.00014546]
[1761064551755,0.63028886,113950.0,113940.0,0.01769855]
[1761064552311,0.63028886,113950.0,113940.0,0.00014546]
[1761064552507,0.62928886,113950.0,113940.0,0.00014546]
[1761064553038,0.62928886,113950.0,113940.0,0.01769855]
[1761064554987,0.62928886,113950.0,113940.0,0.00014546]
[1761064554988,1.30619326,113950.0,113940.0,0.00014546]
[1761064555630,1.34208505,113950.0,113940.0,0.00014546]
[1761064555842,1.43190406,113950.0,113940.0,0.00014546]
[1761064556244,1.39601227,113950.0,113940.0,0.00014546]
[1761064556549,1.1073767,113950.0,113940.0,0.00014546]
[1761064556760,0.00065329,113950.0,113940.0,1.05543985]
[1761064557179,0.00165329,113950.0,113940.0,1.39543985]
[1761064557402,1e-08,113990.0,113980.0,0.17546938]
[1761064557616,1e-08,113990.0,113980.0,0.19301631]
[1761064558059,1e-08,113990.0,113980.0,0.17546938]
[1761064558403,1e-08,113990.0,113980.0,0.62878938]
[1761064558609,1e-08,113990.0,113980.0,0.86755385]
[1761064558811,0.17545399,113990.0,113980.0,0.11346546]
[1761064559363,0.7191401,113990.0,113980.0,0.00014546]
[1761064559567,0.718633,113990.0,113980.0,0.00014546]
[1761064559780,0.62881399,113990.0,113980.0,0.00014546]
[1761064560026,0.62881399,113990.0,113980.0,0.00114546]
[1761064560232,0.62881399,113990.0,113980.0,0.00014546]
[1761064560448,0.62981399,113990.0,113980.0,0.00014546]
[1761064561511,0.34100001,113990.0,113980.0,0.00014546]
[1761064561719,1.48639641,113990.0,113980.0,0.00014546]
[1761064561927,1.48635641,113990.0,113980.0,0.00014546]
[1761064562125,0.719633,113990.0,113980.0,0.00014546]
[1761064562606,0.45436001,113990.0,113980.0,0.00014546]
[1761064562781,0.00100001,113990.0,113980.0,0.19316177]
[1761064562990,0.17696109,113990.0,113980.0,0.00014546]
[1761064563397,0.00150711,113990.0,113980.0,0.18801121]
[1761064563636,0.00100001,113990.0,113980.0,0.19316177]
[1761064565199,1e-08,113990.0,113980.0,0.19316177]
[1761064566554,0.00130603,113990.0,113980.0,0.19316177]
[1761064568503,0.00130603,113990.0,113980.0,0.87006617]
[1761064568819,0.00130603,113990.0,113980.0,0.85251924]
[1761064569205,0.00130603,113990.0,113980.0,0.17561484]
[1761064569402,0.00130603,113990.0,113980.0,0.95988518]
[1761064569608,0.00130603,113990.0,113980.0,0.94233825]
[1761064570838,0.00130603,113990.0,113980.0,0.26543385]
[1761064570997,0.00130603,113990.0,113980.0,0.94233825]
[1761064571209,10.09783686,114000.0,113990.0,4.88926276]
[1761064571210,9.55354032,114000.0,113990.0,4.88926276]
[1761064571411,9.37691943,114000.0,113990.0,5.09260177]
[1761064571613,9.0779611,114000.0,113990.0,5.09260177]
[1761064571828,2.57079106,114000.0,113990.0,2.60551413]
[1761064572039,1.62391014,114000.0,113990.0,2.64924135]
[1761064572246,0.0002,114010.0,114000.0,4.34186775]
[1761064572559,0.05344675,114110.0,114040.0,3.58155931]
[1761064572560,0.01340037,114050.0,114040.0,3.58155931]
[1761064572751,0.01340037,114050.0,114040.0,5.5770369]
[1761064572946,0.05344675,114110.0,114060.0,3.57152856]
[1761064573147,0.05344675,114110.0,114060.0,4.18248879]
[1761064573347,0.72200016,114100.0,114060.0,0.88088341]
[1761064573583,0.44930537,114090.0,114060.0,0.88088341]
[1761064573787,0.00068655,114070.0,114060.0,0.54397901]
[1761064574093,0.00068655,114070.0,114060.0,1.22088341]
[1761064574245,0.00068655,114070.0,114060.0,0.54397901]
[1761064574654,0.17601748,114070.0,114060.0,0.54397901]
[1761064574891,0.17601748,114070.0,114060.0,0.09789336]
[1761064575055,0.26088778,114090.0,114060.0,0.09181901]
[1761064575262,0.10802494,114140.0,114110.0,0.00876347]
[1761064575263,0.05320595,114140.0,114110.0,0.00876347]
[1761064575459,0.02686291,114140.0,114130.0,3.439819]
[1761064575840,0.02686291,114140.0,114130.0,3.67221101]
[1761064575841,0.00051987,114140.0,114130.0,3.67221101]
[1761064576042,0.00051987,114140.0,114130.0,0.60505777]
[1761064576189,0.00051987,114140.0,114130.0,3.68600315]
[1761064576372,0.11849022,114150.0,114140.0,0.24625644]
[1761064576716,0.32022925,114170.0,114150.0,0.17020805]
[1761064576942,0.12565523,114160.0,114150.0,0.26502706]
[1761064577151,0.01495658,114160.0,114150.0,0.26502706]
[1761064577321,0.13119658,114160.0,114150.0,0.26502706]
[1761064578310,0.01495658,114160.0,114150.0,0.94193146]
[1761064578622,0.01495658,114160.0,114150.0,3.27502705]
[1761064578830,0.01495658,114160.0,114150.0,0.94193146]
[1761064579031,0.13135658,114160.0,114150.0,0.94293146]
[1761064579243,0.13135658,114160.0,114150.0,0.96701313]
[1761064579409,0.01495658,114160.0,114150.0,4.03130217]
[1761064579598,0.13139658,114160.0,114150.0,3.36439776]
[1761064579802,0.13139658,114160.0,114150.0,4.04130216]